fUSD/lending_fUSD_20251118
["ID","MTS","AMOUNT","RATE_DAILY","PERIOD"]
[394335304,1763468079981,-10000.01,0.00015782,2]
[394335305,1763468080099,-10000.01,0.00015782,2]
[394335306,1763468080212,-10000.01,0.00015782,2]
[394335307,1763468080368,-10000.01,0.00015782,2]
[394335308,1763468122042,-249.10163404,0.00015682,2]
[394335309,1763468122064,-500.0,0.00015773,2]
[394335310,1763468122085,-501.59027207,0.00015773,2]
[394335311,1763468122106,-500.0,0.00015773,2]
[394335312,1763468122128,-412.16609389,0.00015773,2]
[394335313,1763468127957,-212.77031832,0.00015692,2]
[394335314,1763468129766,-500.0,0.00015692,2]
[394335315,1763468132767,-2000.0,0.00015692,2]
[394335316,1763468135927,-496.46705718,0.00015692,2]
[394335317,1763468139036,-250.0,0.00015692,2]
[394335318,1763468141560,-691.49120298,0.00015692,2]
[394335319,1763468143620,-1179.15582057,0.00015692,2]
[394335320,1763468145641,-249.99999984,0.00015692,2]
[394335321,1763468149886,-5930.53225722,0.00015692,2]
[394335322,1763468150793,753.25,0.00015772,3]
[394335323,1763468152447,-151.00000016,0.00015692,2]
[394335324,1763468157263,-195.0,0.00015692,2]
[394335325,1763468158902,-200.00008818,0.00015692,2]
[394335326,1763468160919,-4236.52829715,0.00015692,2]
[394335327,1763468165206,-199.71517315,0.00015691,2]
[394335328,1763468167142,-100.28482685,0.00015691,2]
[394335329,1763468167164,-3969.21142136,0.00015692,2]
[394335330,1763468170941,-300.0,0.00015692,2]
[394335332,1763468173705,-582.72433826,0.00015692,2]
[394335333,1763468175752,-8382.86776369,0.00015692,2]
[394335334,1763468178335,-310.0,0.00015692,2]
[394335335,1763468181132,-2751.0,0.00015692,2]
[394335336,1763468183041,-2898.95143509,0.00015692,2]
[394335337,1763468183064,-544.55673116,0.00015692,2]
[394335338,1763468206340,2520.62357837,0.00017,3]
[394335339,1763468206369,1102.84033085,0.00017,3]
[394335340,1763468239610,-174.74699686,0.00015673,2]
[394335341,1763468239633,-174.74699685,0.00015682,2]
[394335342,1763468239662,-1037.19779551,0.00015692,2]
[394335343,1763468269521,-1200.0,0.00015772,2]
[394335344,1763468269543,-500.0,0.00015773,2]
[394335345,1763468269564,-300.0,0.00015773,2]
[394335346,1763468275875,613.30821078,0.00015682,2]
[394335347,1763468289271,-2000.0,0.00015682,2]
[394335348,1763468296396,-2000.0,0.00015682,2]
[394335349,1763468351488,-195.78791334,0.00015667,2]
[394335350,1763468360991,-476.42208666,0.00015667,2]
[394335351,1763468361011,-467.32180183,0.00015673,2]
[394335352,1763468361031,-195.0,0.00015674,2]
[394335353,1763468361052,-12703.34794526,0.00015682,2]
[394335354,1763468417261,160.0,0.000156,2]
[394335355,1763468418941,160.0,0.000156,2]
[394335356,1763468429112,166.69573629,0.00015373,2]
[394335357,1763468430961,160.0,0.000156,2]
[394335358,1763468431900,160.0,0.000156,2]
[394335359,1763468447489,160.0,0.000156,2]
[394335360,1763468471567,160.0,0.000301,120]
[394335361,1763468478592,160.0,0.000301,120]
[394335362,1763468494769,160.0,0.000301,120]
[394335363,1763468496140,160.0,0.000301,120]
[394335364,1763468508341,160.0,0.000301,120]
[394335365,1763468529858,160.0,0.00017,3]
[394335366,1763468530823,160.0,0.00017,3]
[394335367,1763468547916,171.38,0.00017,3]
[394335368,1763468549047,290.79196692,0.00015582,2]
[394335369,1763468581041,742.51229679,0.0001543,2]
[394335370,1763468581069,1634.51770321,0.0001543,2]
[394335371,1763468581968,-237.43982258,0.00015632,2]
[394335372,1763468609717,999.0,0.00015305,3]
[394335373,1763468658400,-53.35214433,0.00015632,2]
[394335374,1763468658433,-300.0,0.00015681,2]
[394335375,1763468658464,-1200.0,0.00015681,2]
[394335376,1763468658493,-1200.0,0.00015681,2]
[394335377,1763468658521,-338.33905474,0.00015682,2]
[394335378,1763468658550,-1316.62760186,0.00015682,2]
[394335379,1763468658658,-1183.37239814,0.00015682,2]
[394335380,1763468658687,-798.9963,0.00015682,2]
[394335381,1763468658715,-1000.0,0.00015682,2]
[394335382,1763468658743,-290.79196691,0.00015682,2]
[394335383,1763468658772,-302.49589136,0.00015682,2]
[394335384,1763468658801,-195.0,0.00015737,2]
[394335385,1763468658831,-300.0,0.00015772,2]
[394335386,1763468658865,-151.0,0.00015772,2]
[394335387,1763468658897,-151.0,0.00015772,2]
[394335388,1763468658924,-151.0,0.00015772,2]
[394335389,1763468658950,-151.0,0.00015772,2]
[394335390,1763468658978,-265.04564495,0.00015772,2]
[394335391,1763468659047,-200.0,0.00015773,2]
[394335392,1763468659074,-501.23611998,0.00015773,2]
[394335393,1763468659105,-500.0,0.00015773,2]
[394335394,1763468659133,-500.0,0.00015773,2]
[394335395,1763468659161,-500.85774384,0.00015773,2]
[394335396,1763468659189,-530.5460866,0.00015773,2]
[394335397,1763468659217,-500.0,0.00015773,2]
[394335398,1763468659247,-587.83390611,0.00015773,2]
[394335399,1763468659275,-595.9134564,0.00015773,2]
[394335400,1763468659305,-500.0,0.00015773,2]
[394335401,1763468659838,-500.0,0.00015773,2]
[394335402,1763468659871,-500.0,0.00015781,2]
[394335403,1763468659906,-500.0,0.00015781,2]
[394335404,1763468659936,-500.0,0.00015781,2]
[394335405,1763468659967,-500.0,0.00015781,2]
[394335406,1763468659997,-500.0,0.00015781,2]
[394335407,1763468660029,-500.0,0.00015781,2]
[394335408,1763468660060,-500.0,0.00015781,2]
[394335409,1763468660093,-500.0,0.00015781,2]
[394335410,1763468660124,-500.0,0.00015781,2]
[394335411,1763468660252,-630.19808957,0.00015781,2]
[394335412,1763468660284,-500.0,0.00015781,2]
[394335413,1763468660315,-500.0,0.00015781,2]
[394335414,1763468660346,-500.0,0.00015781,2]
[394335415,1763468660377,-500.0,0.00015781,2]
[394335416,1763468660407,-500.0,0.00015781,2]
[394335417,1763468660437,-500.0,0.00015781,2]
[394335418,1763468660467,-500.0,0.00015781,2]
[394335419,1763468660497,-500.0,0.00015781,2]
[394335420,1763468660530,-239.61382086,0.00015781,2]
[394335421,1763468660675,-260.38617914,0.00015781,2]
[394335422,1763468660885,-500.0,0.00015781,2]
[394335423,1763468660921,-500.0,0.00015781,2]
[394335424,1763468660953,-500.0,0.00015781,2]
[394335425,1763468660985,-500.0,0.00015781,2]
[394335426,1763468661016,-500.0,0.00015781,2]
[394335427,1763468661048,-500.0,0.00015781,2]
[394335428,1763468661079,-500.0,0.00015781,2]
[394335429,1763468661111,-500.0,0.00015781,2]
[394335430,1763468661142,-500.0,0.00015781,2]
[394335431,1763468661209,-500.0,0.00015781,2]
[394335432,1763468661248,-500.0,0.00015781,2]
[394335433,1763468661282,-500.0,0.00015781,2]
[394335434,1763468661313,-500.0,0.00015781,2]
[394335435,1763468661345,-500.0,0.00015781,2]
[394335436,1763468661375,-500.0,0.00015781,2]
[394335437,1763468661405,-500.0,0.00015781,2]
[394335438,1763468661435,-500.0,0.00015781,2]
[394335439,1763468661464,-500.0,0.00015781,2]
[394335440,1763468661493,-450.0,0.00015781,2]
[394335441,1763468661630,-500.0,0.00015781,2]
[394335442,1763468661660,-500.0,0.00015781,2]
[394335443,1763468661691,-500.0,0.00015781,2]
[394335444,1763468661720,-500.0,0.00015781,2]
[394335445,1763468661751,-500.0,0.00015781,2]
[394335446,1763468661781,-500.0,0.00015781,2]
[394335447,1763468661811,-480.58730364,0.00015781,2]
[394335448,1763468661841,-500.0,0.00015781,2]
[394335449,1763468661873,-500.0,0.00015781,2]
[394335450,1763468661908,-500.0,0.00015781,2]
[394335451,1763468661973,-500.0,0.00015781,2]
[394335452,1763468662004,-500.0,0.00015781,2]
[394335453,1763468662035,-500.0,0.00015781,2]
[394335454,1763468662065,-600.0,0.00015781,2]
[394335455,1763468662094,-169.5838021,0.00015781,2]
[394335456,1763468662123,-199.71731436,0.00015781,2]
[394335457,1763468662153,-734.67,0.00015781,2]
[394335458,1763468662183,-788.95,0.00015781,2]
[394335459,1763468662211,-500.0,0.00015781,2]
[394335460,1763468662665,1464.56,0.00015279,2]
[394335461,1763468663817,-115.21539272,0.00015782,2]
[394335462,1763468663847,-169.5838021,0.00015782,2]
[394335463,1763468663861,-199.71731436,0.00015782,2]
[394335464,1763468663876,-734.67,0.00015782,2]
[394335465,1763468663891,-788.95,0.00015782,2]
[394335466,1763468663906,-500.0,0.00015782,2]
[394335467,1763468663920,-1014.16776708,0.00015782,2]
[394335468,1763468664038,-10000.01,0.00015782,2]
[394335469,1763468664056,-10000.01,0.00015782,2]
[394335470,1763468664075,-10000.01,0.00015782,2]
[394335471,1763468664089,-10000.01,0.00015782,2]
[394335472,1763468664121,-10000.01,0.00015782,2]
[394335473,1763468664136,-10000.01,0.00015782,2]
[394335474,1763468664352,-10000.01,0.00015782,2]
[394335475,1763468664460,-10000.01,0.00015782,2]
[394335476,1763468664576,-10000.01,0.00015782,2]
[394335477,1763468664766,-10000.01,0.00015782,2]
[394335478,1763468664888,-10000.01,0.00015782,2]
[394335479,1763468665032,-10000.01,0.00015782,2]
[394335480,1763468665168,-10000.01,0.00015782,2]
[394335481,1763468665287,-10000.01,0.00015782,2]
[394335482,1763468665405,-10000.01,0.00015782,2]
[394335483,1763468665553,-10000.01,0.00015782,2]
[394335484,1763468813159,14913.24423555,0.000162,5]
[394335485,1763468815983,331.0,0.0003013,120]
[394335486,1763468820998,1093.92783441,0.000153,2]
[394335487,1763468824512,3023.39390417,0.00015,2]
[394335488,1763468844266,1000.0,0.0003013,120]
[394335490,1763468874618,-2751.0,0.00015672,2]
[394335491,1763468874652,-1998.01,0.00015682,2]
[394335492,1763468874691,-501.99,0.00015682,2]
[394335493,1763468874729,-300.0,0.0001578,2]
[394335494,1763468874758,-1200.0,0.0001578,2]
[394335495,1763468874792,-500.0,0.00015781,2]
[394335496,1763468874827,-500.0,0.00015781,2]
[394335497,1763468874865,-500.0,0.00015781,2]
[394335498,1763468874905,-500.0,0.00015781,2]
[394335499,1763468874941,-631.7059314,0.00015781,2]
[394335500,1763468874972,-300.0,0.00015781,2]
[394335501,1763468875099,-1200.0,0.00015781,2]
[394335502,1763468875193,-1136.5981372,0.00015782,2]
[394335503,1763468875218,-7600.01,0.00015782,2]
[394335504,1763468875232,-10000.01,0.00015782,2]
[394335505,1763468875246,-10000.01,0.00015782,2]
[394335506,1763468875272,-10000.01,0.00015782,2]
[394335507,1763468875680,-10000.01,0.00015782,2]
[394335508,1763468875791,-10000.01,0.00015782,2]
[394335509,1763468875899,-10000.01,0.00015782,2]
[394335510,1763468877664,-516.02328025,0.00015781,2]
[394335511,1763468877701,-8967.9634395,0.00015782,2]
[394335512,1763468877781,-10000.01,0.00015782,2]
[394335513,1763468877928,-4490.61465853,0.00015782,2]
[394335514,1763468877959,-18.78068294,0.00015782,2]
[394335515,1763468878003,-981.21931706,0.00015782,2]
[394335516,1763468878078,-1161.8232,0.00015782,2]
[394335518,1763468878668,500.0,0.00015781,2]
[394335520,1763468881125,3638.28,0.00015667,2]
[394335529,1763468899908,-704.05,0.00015781,2]
[394335535,1763468909838,2260.47671587,0.0001421,7]
[394335540,1763468923956,500.0,0.00015781,2]
[394335541,1763468924008,500.0,0.00015781,2]
[394335542,1763468924123,350.0,0.00015781,2]
[394335543,1763468933525,1500.0,0.00015701,2]
[394335552,1763468996732,10000.01,0.00015682,2]
[394335553,1763468996760,10000.01,0.00015682,2]
[394335554,1763468996782,10000.01,0.00015682,2]
[394335555,1763468996806,10000.01,0.00015682,2]
[394335556,1763468996835,10000.01,0.00015682,2]
[394335557,1763468996858,10000.01,0.00015682,2]
[394335558,1763468996881,10000.01,0.00015682,2]
[394335559,1763468996907,10000.01,0.00015682,2]
[394335560,1763468996930,10000.01,0.00015682,2]
[394335561,1763468996953,10000.01,0.00015682,2]
[394335562,1763468998067,-300.0,0.00015682,2]
[394335563,1763469003960,-300.0,0.00015681,2]
[394335564,1763469003991,-1200.0,0.00015681,2]
[394335565,1763469004019,-300.0,0.00015681,2]
[394335566,1763469004047,-300.0,0.00015681,2]
[394335567,1763469007049,-8811.74,0.00015672,2]
[394335568,1763469007170,-2104.45,0.00015672,2]
[394335569,1763469007205,-5791.11,0.00015672,2]
[394335570,1763469007318,-4874.93,0.00015672,2]
[394335571,1763469007341,-250.15,0.00015672,2]
[394335572,1763469007444,-10000.01,0.00015682,2]
[394335573,1763469007566,-10000.01,0.00015682,2]
[394335574,1763469007695,-10000.01,0.00015682,2]
[394335575,1763469007803,-10000.01,0.00015682,2]
[394335576,1763469007904,-10000.01,0.00015682,2]
[394335577,1763469008061,-10000.01,0.00015682,2]
[394335578,1763469009974,-10000.01,0.00015682,2]
[394335579,1763469010088,-10000.01,0.00015682,2]
[394335580,1763469013143,-10000.01,0.00015682,2]
[394335581,1763469013363,-10000.01,0.00015682,2]
[394335582,1763469013506,-10000.01,0.00015682,2]
[394335583,1763469013663,-10000.01,0.00015682,2]
[394335584,1763469013779,-10000.01,0.00015682,2]
[394335585,1763469013896,-10000.01,0.00015682,2]
[394335586,1763469014018,-10000.01,0.00015682,2]
[394335587,1763469016032,-10000.01,0.00015682,2]
[394335588,1763469016141,-10000.01,0.00015682,2]
[394335602,1763469032168,-4802.65,0.00015682,2]
[394335603,1763469032179,-271710.39994668,0.00015682,2]
[394335604,1763469032191,-45315.27386143,0.00015682,2]
[394335605,1763469032202,-36927.72004477,0.00015682,2]
[394335606,1763469032218,-1004.16360742,0.00015682,2]
[394335607,1763469032229,-963.4625,0.00015682,2]
[394335608,1763469032247,-8677.38,0.00015682,2]
[394335624,1763469034204,-279.73,0.00015682,2]
[394335625,1763469034325,-151.0,0.00015682,2]
[394335626,1763469034420,-151.0,0.00015682,2]
[394335627,1763469034526,-151.0,0.00015682,2]
[394335628,1763469034677,-151.0,0.00015682,2]
[394335629,1763469034769,-151.0,0.00015682,2]
[394335630,1763469034866,-151.0,0.00015682,2]
[394335631,1763469034968,-151.0,0.00015682,2]
[394335632,1763469035072,-500.0,0.00015682,2]
[394335633,1763469035159,-500.0,0.00015682,2]
[394335634,1763469035249,-190.75379603,0.00015682,2]
[394335635,1763469035350,-500.0,0.00015682,2]
[394335636,1763469035441,-500.0,0.00015682,2]
[394335637,1763469035524,-166.88,0.00015682,2]
[394335638,1763469035642,-286.51847512,0.00015682,2]
[394335639,1763469035730,-339.47152488,0.00015682,2]
[394335640,1763469035833,-151.0,0.00015682,2]
[394335641,1763469035933,-308.36890759,0.00015682,2]
[394335642,1763469036418,-300.0,0.00015682,2]
[394335643,1763469037402,-10000.01,0.00015682,2]
[394335645,1763469038144,-2193.578375,0.00015682,2]
[394335646,1763469038310,-960.35,0.00015682,2]
[394335772,1763469040557,-58.49584281,0.00015682,2]
[394335773,1763469040605,-530.6,0.00015682,2]
[394335777,1763469040753,-2759.9571997,0.00015682,2]
[394335778,1763469040783,-10000.01,0.00015682,2]
[394335789,1763469043314,-4847.06400167,0.00015682,2]
[394335790,1763469043371,-867.26068256,0.00015682,2]
[394335791,1763469043635,-1128.1501817,0.00015682,2]
[394335800,1763469066361,-291.68102888,0.00015603,2]
[394335801,1763469067279,-305.78791334,0.00015603,2]
[394335802,1763469068183,-304.21208666,0.00015603,2]
[394335803,1763469069058,-554.24199268,0.00015603,2]
[394335804,1763469069916,-500.0,0.00015603,2]
[394335805,1763469069954,291.681029,7.945e-05,2]
[394335806,1763469071000,-445.75800732,0.00015603,2]
[394335807,1763469073240,-500.0,0.00015603,2]
[394335808,1763469141348,-465.0,0.00015511,2]
[394335809,1763469142194,-406.96938424,0.00015511,2]
[394335810,1763469143133,-205.13397946,0.00015511,2]
[394335811,1763469144294,-500.0,0.00015511,2]
[394335812,1763469181808,174.38893912,0.00015489,2]
[394335813,1763469219053,3155.059142,0.00015472,2]
[394335814,1763469476183,-3173.94,0.00015538,2]
[394335815,1763469476212,-195.0,0.0001555,2]
[394335816,1763469476251,-411.57395041,0.00015589,2]
[394335817,1763469476282,-996.98209918,0.00015632,2]
[394335818,1763469476345,-445.01790082,0.00015632,2]
[394335819,1763469476421,-1600.0,0.00015643,2]
[394335820,1763469476449,-150.0,0.00015652,2]
[394335821,1763469476477,-1852.42,0.00015669,2]
[394335822,1763469476505,-657.0,0.00015679,2]
[394335823,1763469476535,-281.17,0.0001568,2]
[394335824,1763469476623,-918.83,0.0001568,2]
[394335825,1763469479003,-300.0,0.0001568,2]
[394335826,1763469479033,-300.0,0.0001568,2]
[394335827,1763469479064,-272.12583906,0.00015681,2]
[394335828,1763469479096,-500.0,0.00015681,2]
[394335829,1763469479128,-500.0,0.00015681,2]
[394335830,1763469479160,-500.0,0.00015681,2]
[394335831,1763469479191,-500.0,0.00015681,2]
[394335832,1763469479225,-500.0,0.00015681,2]
[394335833,1763469479255,-500.0,0.00015681,2]
[394335834,1763469479286,-500.0,0.00015681,2]
[394335835,1763469479552,-500.0,0.00015681,2]
[394335836,1763469479718,-255.75832188,0.00015681,2]
[394335837,1763469482024,-244.24167812,0.00015681,2]
[394335838,1763469482059,-500.0,0.00015681,2]
[394335839,1763469482236,-500.0,0.00015681,2]
[394335840,1763469482268,-500.0,0.00015681,2]
[394335841,1763469482301,-500.0,0.00015681,2]
[394335842,1763469482332,-500.0,0.00015681,2]
[394335843,1763469482365,-500.0,0.00015681,2]
[394335844,1763469482395,-500.0,0.00015681,2]
[394335845,1763469482424,-500.0,0.00015681,2]
[394335846,1763469482454,-500.0,0.00015681,2]
[394335847,1763469482484,-11.52664376,0.00015681,2]
[394335848,1763469482573,-488.47335624,0.00015681,2]
[394335849,1763469482602,-500.0,0.00015681,2]
[394335850,1763469482632,-500.0,0.00015681,2]
[394335851,1763469482662,-500.0,0.00015681,2]
[394335852,1763469482698,-500.0,0.00015681,2]
[394335853,1763469482729,-500.0,0.00015681,2]
[394335854,1763469482760,-500.0,0.00015681,2]
[394335855,1763469482790,-500.0,0.00015681,2]
[394335856,1763469482824,-500.0,0.00015681,2]
[394335857,1763469482855,-500.0,0.00015681,2]
[394335858,1763469483100,-300.0,0.0001568,2]
[394335859,1763469483111,-200.0,0.00015681,2]
[394335860,1763469483125,-23.06328752,0.00015681,2]
[394335861,1763469485047,-276.93671248,0.00015681,2]
[394335862,1763469485085,-500.0,0.00015681,2]
[394335863,1763469485118,-500.0,0.00015681,2]
[394335864,1763469485150,-500.0,0.00015681,2]
[394335865,1763469485182,-500.0,0.00015681,2]
[394335866,1763469485224,-500.0,0.00015681,2]
[394335867,1763469485261,-500.0,0.00015681,2]
[394335868,1763469485303,-239.23058422,0.00015681,2]
[394335869,1763469485343,-500.0,0.00015681,2]
[394335870,1763469485382,-500.0,0.00015681,2]
[394335871,1763469485420,-467.6754066,0.00015681,2]
[394335872,1763469485526,-32.3245934,0.00015681,2]
[394335873,1763469485566,-500.0,0.00015681,2]
[394335874,1763469485606,-500.0,0.00015681,2]
[394335875,1763469485645,-500.0,0.00015681,2]
[394335876,1763469485682,-500.0,0.00015681,2]
[394335877,1763469485722,-500.0,0.00015681,2]
[394335878,1763469485760,-500.0,0.00015681,2]
[394335879,1763469485796,-500.0,0.00015681,2]
[394335880,1763469485836,-500.0,0.00015681,2]
[394335881,1763469485872,-500.0,0.00015681,2]
[394335882,1763469485907,-435.3608132,0.00015681,2]
[394335883,1763469486523,-64.6391868,0.00015681,2]
[394335884,1763469486535,-32.3245934,0.00015681,2]
[394335885,1763469488534,-467.6754066,0.00015681,2]
[394335886,1763469488566,-500.0,0.00015681,2]
[394335887,1763469488598,-500.0,0.00015681,2]
[394335888,1763469488629,-500.0,0.00015681,2]
[394335889,1763469488660,-500.0,0.00015681,2]
[394335890,1763469488691,-500.0,0.00015681,2]
[394335891,1763469488722,-500.0,0.00015681,2]
[394335892,1763469488752,-250.0,0.00015681,2]
[394335893,1763469488785,-500.0,0.00015681,2]
[394335894,1763469488818,-500.0,0.00015681,2]
[394335895,1763469488849,-64.6591868,0.00015681,2]
[394335896,1763469488911,-435.3408132,0.00015681,2]
[394335897,1763469488945,-500.0,0.00015681,2]
[394335898,1763469488978,-500.0,0.00015681,2]
[394335899,1763469489010,-500.0,0.00015681,2]
[394335900,1763469489043,-500.0,0.00015681,2]
[394335901,1763469489079,-200.0,0.00015681,2]
[394335902,1763469489110,-150.0,0.00015681,2]
[394335903,1763469489142,-150.0,0.00015681,2]
[394335904,1763469489171,-150.0,0.00015681,2]
[394335905,1763469489200,-150.0,0.00015681,2]
[394335906,1763469489228,-150.0,0.00015681,2]
[394335907,1763469489257,-150.0,0.00015681,2]
[394335908,1763469489284,-150.0,0.00015681,2]
[394335909,1763469489313,-150.0,0.00015681,2]
[394335910,1763469489758,-150.0,0.00015682,2]
[394335911,1763469489774,-150.0,0.00015682,2]
[394335912,1763469489789,-150.0,0.00015682,2]
[394335913,1763469489804,-2329.3283736,0.00015682,2]
[394335914,1763469489818,-10000.01,0.00015682,2]
[394335915,1763469491146,-10000.01,0.00015682,2]
[394335916,1763469491258,-10000.01,0.00015682,2]
[394335917,1763469494188,-10000.01,0.00015682,2]
[394335918,1763469494430,-10000.01,0.00015682,2]
[394335919,1763469494544,-10000.01,0.00015682,2]
[394335920,1763469595960,-610.0,0.00015554,2]
[394335921,1763469595989,-690.33,0.00015681,2]
[394335922,1763469596016,-300.0,0.00015681,2]
[394335923,1763469596279,-6799.35,0.00015682,2]
[394335924,1763469596394,-10000.01,0.00015682,2]
[394335925,1763469596589,-2294.73267904,0.00015682,2]
[394335926,1763469596622,-5410.54464192,0.00015689,2]
[394335927,1763469596715,-10000.01,0.00015689,2]
[394335928,1763469596854,-792.95535808,0.00015689,2]
[394335929,1763469596884,-1442.0,0.00015695,2]
[394335930,1763469596916,-550.16,0.00015707,2]
[394335931,1763469596944,-150.0,0.00015712,2]
[394335932,1763469596973,-1442.0,0.00015746,2]
[394335933,1763469597071,-1442.0,0.00015751,2]
[394335934,1763469597101,-897.07898356,0.00015799,2]
[394335935,1763469597131,-2219.48730231,0.00015807,2]
[394335936,1763469597161,-150.0,0.00015818,2]
[394335937,1763469597189,-200.0,0.00015818,2]
[394335938,1763469597297,-200.0,0.00015818,2]
[394335939,1763469597306,-150.0,0.00015818,2]
[394335940,1763469597315,-150.0,0.00015818,2]
[394335941,1763469597324,-395.77928384,0.00015828,2]
[394335942,1763469597337,-150.0,0.00015828,2]
[394335943,1763469597351,-200.0,0.00015828,2]
[394335944,1763469597364,-182.87742826,0.00015828,2]
[394335945,1763469598236,-513.3432879,0.00015828,2]
[394335946,1763469598264,-1442.0,0.00015832,2]
[394335947,1763469598290,-243.80207,0.0001588,2]
[394335948,1763469598317,-222.2989347,0.000159,2]
[394335949,1763469598343,-319.67830682,0.000159,2]
[394335950,1763469598369,-319.6783068,0.000159,2]
[394335951,1763469598396,-319.6783068,0.000159,2]
[394335952,1763469598424,-319.6783068,0.000159,2]
[394335953,1763469598451,-319.6783068,0.000159,2]
[394335954,1763469598478,-243.80208,0.0001591,2]
[394335955,1763469598504,-243.80207,0.0001591,2]
[394335956,1763469598530,-150.0,0.00015919,2]
[394335957,1763469598557,-243.80208,0.0001594,2]
[394335958,1763469598584,-47.52588676,0.00015955,2]
[394335959,1763469598774,-102.47411324,0.00015955,2]
[394335960,1763469601253,-150.0,0.00015955,2]
[394335961,1763469601280,-150.0,0.00015955,2]
[394335962,1763469601308,-690.33,0.00015955,2]
[394335963,1763469601336,-243.80208,0.0001601,2]
[394335964,1763469601366,-372.0,0.00016041,2]
[394335965,1763469601394,-550.0,0.00016069,2]
[394335966,1763469601421,-243.80207,0.0001607,2]
[394335967,1763469601447,-150.0,0.00016092,2]
[394335968,1763469601473,-150.0,0.00016092,2]
[394335969,1763469601499,-150.0,0.00016092,2]
[394335970,1763469601665,-300.0,0.00016099,2]
[394335971,1763469601692,-300.0,0.00016099,2]
[394335972,1763469601720,-1200.0,0.00016099,2]
[394335973,1763469601834,-2500.1417,0.000161,2]
[394335974,1763469601871,-4643.36801697,0.000161,2]
[394335975,1763469601920,-713.27396606,0.000161,2]
[394335976,1763469601948,-1703.0,0.000161,2]
[394335977,1763469602455,200.0,0.00016012,2]
[394335978,1763469650187,166.66,0.0001499,2]
[394335979,1763469650599,166.66,0.00015305,2]
[394335980,1763469650788,166.66,0.00015621,2]
[394335981,1763469657791,10000.01,0.00015581,2]
[394335982,1763469657817,10000.01,0.00015581,2]
[394335983,1763469664171,-9300.03,0.00015581,2]
[394335984,1763469693284,4141.035,0.00015269,2]
[394335985,1763469761177,-151.0,0.00015578,2]
[394335986,1763469761207,-300.0,0.0001558,2]
[394335987,1763469761237,-300.0,0.0001558,2]
[394335988,1763469761273,-500.0,0.0001558,2]
[394335989,1763469761301,-365.27286918,0.0001558,2]
[394335990,1763469761330,-378.30414776,0.0001558,2]
[394335991,1763469761360,-234.6546183,0.0001558,2]
[394335992,1763469761388,-441.76156172,0.0001558,2]
[394335993,1763469761420,-500.0,0.0001558,2]
[394335994,1763469761451,-500.0,0.0001558,2]
[394335995,1763469761481,-500.0,0.0001558,2]
[394335996,1763469761515,-500.0,0.0001558,2]
[394335997,1763469761546,-158.02360608,0.0001558,2]
[394335998,1763469761687,-341.97639392,0.0001558,2]
[394335999,1763469761718,-500.0,0.0001558,2]
[394336000,1763469761749,-500.0,0.0001558,2]
[394336001,1763469761781,-500.0,0.0001558,2]
[394336002,1763469761813,-500.0,0.0001558,2]
[394336003,1763469761845,-500.0,0.0001558,2]
[394336004,1763469761877,-500.0,0.0001558,2]
[394336005,1763469761912,-500.0,0.0001558,2]
[394336006,1763469761946,-500.0,0.0001558,2]
[394336007,1763469761980,-500.0,0.0001558,2]